fUST/lending_fUST_20240720
["ID","MTS","AMOUNT","RATE_DAILY","PERIOD"]
[332672429,1721416247187,-500.0,0.00016438,2]
[332672431,1721416247197,-998.66,0.00016438,2]
[332672433,1721416247206,-998.66,0.00016438,2]
[332672435,1721416247216,-2146.89,0.00016438,2]
[332672437,1721416247231,-998.66,0.00016438,2]
[332672439,1721416247241,-500.0,0.00016438,2]
[332672441,1721416247251,-998.66,0.00016438,2]
[332672443,1721416247262,-998.66,0.00016438,2]
[332672446,1721416247272,-998.66,0.00016438,2]
[332672448,1721416247282,-998.66,0.00016438,2]
[332672450,1721416247292,-998.66,0.00016438,2]
[332672452,1721416247302,-998.66,0.00016438,2]
[332672454,1721416247311,-15305.28,0.00016438,2]
[332672456,1721416247321,-998.66,0.00016438,2]
[332672458,1721416247331,-998.66,0.00016438,2]
[332672459,1721416247341,-998.66,0.00016438,2]
[332672461,1721416247350,-998.66,0.00016438,2]
[332672464,1721416247361,-998.66,0.00016438,2]
[332672465,1721416247370,-1814.67,0.00016438,2]
[332672467,1721416247379,-998.66,0.00016438,2]
[332672469,1721416247389,-998.66,0.00016438,2]
[332672471,1721416247398,-998.66,0.00016438,2]
[332672474,1721416247411,-500.0,0.00016438,2]
[332672476,1721416247420,-998.66,0.00016438,2]
[332672477,1721416247429,-998.66,0.00016438,2]
[332672479,1721416247438,-602.01949969,0.00016438,2]
[332672530,1721416247921,-154.74467129,0.00016095,2]
[332672532,1721416247932,-396.64050031,0.00016438,2]
[332672534,1721416247943,-998.66,0.00016438,2]
[332672536,1721416247954,-998.66,0.00016438,2]
[332672538,1721416247965,-998.66,0.00016438,2]
[332672540,1721416247976,-998.87,0.00016438,2]
[332672542,1721416247986,-500.0,0.00016438,2]
[332672544,1721416247995,-500.0,0.00016438,2]
[332672546,1721416248007,-500.0,0.00016438,2]
[332672549,1721416248017,-661.65,0.00016438,2]
[332672551,1721416248026,-4410.89,0.00016438,2]
[332672552,1721416248035,-500.0,0.00016438,2]
[332672554,1721416248045,-2866.4,0.00016438,2]
[332672556,1721416248054,-500.0,0.00016438,2]
[332672558,1721416248063,-500.70920234,0.00016438,2]
[332672560,1721416248073,-40842.35,0.00016438,2]
[332672562,1721416248082,-500.0,0.00016438,2]
[332672564,1721416248091,-2157.62,0.00016438,2]
[332672566,1721416248101,-500.0,0.00016438,2]
[332672568,1721416248111,-8192.15,0.00016438,2]
[332672570,1721416248120,-500.0,0.00016438,2]
[332672572,1721416248130,-905.37,0.00016438,2]
[332672575,1721416248141,-905.37,0.00016438,2]
[332672577,1721416248151,-905.37,0.00016438,2]
[332672579,1721416248163,-905.37,0.00016438,2]
[332672581,1721416248174,-500.0,0.00016438,2]
[332672583,1721416248184,-905.37,0.00016438,2]
[332672585,1721416248194,-905.37,0.00016438,2]
[332672587,1721416248204,-500.0,0.00016438,2]
[332672589,1721416248213,-905.37,0.00016438,2]
[332672591,1721416248224,-905.37,0.00016438,2]
[332672593,1721416248234,-905.37,0.00016438,2]
[332672595,1721416248244,-905.37,0.00016438,2]
[332672597,1721416248253,-905.37,0.00016438,2]
[332672599,1721416248263,-500.0,0.00016438,2]
[332672601,1721416248274,-905.37,0.00016438,2]
[332672603,1721416248283,-3039.49,0.00016438,2]
[332672605,1721416248293,-905.37,0.00016438,2]
[332672607,1721416248303,-905.37,0.00016438,2]
[332672609,1721416248312,-614.4,0.00016438,2]
[332672611,1721416248321,-905.37,0.00016438,2]
[332672612,1721416248330,-905.37,0.00016438,2]
[332672614,1721416248339,-905.37,0.00016438,2]
[332672616,1721416248349,-905.37,0.00016438,2]
[332672618,1721416248358,-905.37,0.00016438,2]
[332672620,1721416248369,-905.37,0.00016438,2]
[332672622,1721416248378,-905.37,0.00016438,2]
[332672624,1721416248388,-905.37,0.00016438,2]
[332672626,1721416248398,-500.0,0.00016438,2]
[332672629,1721416248409,-500.0,0.00016438,2]
[332672631,1721416248420,-905.37,0.00016438,2]
[332672633,1721416248430,-905.56504468,0.00016438,2]
[332672635,1721416248440,-502.33441454,0.00016438,2]
[332672637,1721416248449,-500.0,0.00016438,2]
[332672639,1721416248459,-1373.94,0.00016438,2]
[332672641,1721416248469,-494.65141108,0.00016438,2]
[332672643,1721416248481,-5.34858892,0.00016438,2]
[332672645,1721416248490,-151.0,0.00016438,2]
[332672647,1721416248500,-217.563119,0.00016438,2]
[332672649,1721416248510,-151.0,0.00016438,2]
[332672651,1721416248519,-205.122875,0.00016438,2]
[332672653,1721416248529,-205.122875,0.00016438,2]
[332672655,1721416248539,-281.835808,0.00016438,2]
[332672657,1721416248549,-281.835808,0.00016438,2]
[332672659,1721416248559,-163.397413,0.00016438,2]
[332672661,1721416248568,-442.753468,0.00016438,2]
[332672663,1721416248579,-423.790529,0.00016438,2]
[332672665,1721416248588,-442.753468,0.00016438,2]
[332672667,1721416248597,-151.0,0.00016438,2]
[332672669,1721416248607,-423.790529,0.00016438,2]
[332672671,1721416248616,-151.0,0.00016438,2]
[332672673,1721416248629,-151.0,0.00016438,2]
[332672675,1721416248638,-151.0,0.00016438,2]
[332672677,1721416248647,-365.170214,0.00016438,2]
[332672679,1721416248657,-365.170214,0.00016438,2]
[332672681,1721416248666,-151.0,0.00016438,2]
[332672683,1721416248676,-1009.928625,0.00016438,2]
[332672685,1721416248686,-1009.928625,0.00016438,2]
[332672687,1721416248696,-262.430622,0.00016438,2]
[332672689,1721416248705,-262.430622,0.00016438,2]
[332672691,1721416248718,-151.0,0.00016438,2]
[332672693,1721416248728,-151.0,0.00016438,2]
[332672695,1721416248738,-151.0,0.00016438,2]
[332672697,1721416248748,-336.273963,0.00016438,2]
[332672699,1721416248758,-336.273963,0.00016438,2]
[332672701,1721416248768,-857.482851,0.00016438,2]
[332672703,1721416248778,-857.482851,0.00016438,2]
[332672705,1721416248787,-151.0,0.00016438,2]
[332672707,1721416248797,-151.0,0.00016438,2]
[332672709,1721416248806,-151.0,0.00016438,2]
[332672711,1721416248816,-153.0,0.00016438,2]
[332672713,1721416248826,-153.0,0.000165,2]
[332672715,1721416248835,-154.82195475,0.00016532,2]
[332672717,1721416248845,-4578.0280608,0.00016576,2]
[332672719,1721416248855,-338.70818168,0.00016642,2]
[332672721,1721416248865,-552.18,0.00016711,2]
[332672723,1721416248875,-552.18,0.00016711,2]
[332672725,1721416248885,-552.18,0.00016711,2]
[332672727,1721416248895,-552.18,0.00016711,2]
[332672729,1721416248904,-552.18,0.00016711,2]
[332672731,1721416248915,-552.18,0.00016711,2]
[332672733,1721416248924,-552.18,0.00016711,2]
[332672735,1721416248935,-552.22055674,0.00016711,2]
[332672737,1721416248945,-533.19,0.00016711,2]
[332672739,1721416248955,-533.19,0.00016711,2]
[332672741,1721416248965,-533.19,0.00016711,2]
[332672743,1721416248978,-533.19,0.00016711,2]
[332672745,1721416248988,-533.19,0.00016711,2]
[332672747,1721416248997,-533.19,0.00016711,2]
[332672749,1721416249007,-533.19,0.00016711,2]
[332672751,1721416249016,-533.22805117,0.00016711,2]
[332672753,1721416249026,-523.54837916,0.00016712,2]
[332672755,1721416249036,-500.0,0.00016712,2]
[332672757,1721416249047,-922.64,0.00016712,2]
[332672759,1721416249059,-500.0,0.00016712,2]
[332672760,1721416249069,-500.0,0.00016712,2]
[332672762,1721416249079,-500.0,0.00016712,2]
[332672764,1721416249089,-578.25,0.00016712,2]
[332672766,1721416249099,-500.0,0.00016712,2]
[332672768,1721416249108,-500.0,0.00016712,2]
[332672770,1721416249118,-500.0,0.00016712,2]
[332672772,1721416249128,-579.00160339,0.00016712,2]
[332672774,1721416249138,-734.54,0.00016712,2]
[332672776,1721416249147,-151.0,0.00016712,2]
[332672778,1721416249157,-155.480157,0.00016712,2]
[332672780,1721416249168,-500.0,0.00016712,2]
[332672782,1721416249178,-720.4,0.00016712,2]
[332672784,1721416249188,-274.77327132,0.00016712,2]
[332672786,1721416249197,-1295.61,0.00016712,2]
[332672788,1721416249207,-502.03335675,0.00016712,2]
[332672790,1721416249216,-500.0,0.00016712,2]
[332672792,1721416249227,-500.0,0.00016712,2]
[332672794,1721416249237,-500.0,0.00016712,2]
[332672796,1721416249247,-500.0,0.00016712,2]
[332672798,1721416249257,-500.0,0.00016712,2]
[332672800,1721416249267,-500.0,0.00016712,2]
[332672802,1721416249277,-500.0,0.00016712,2]
[332672804,1721416249288,-906.59,0.00016712,2]
[332672806,1721416249298,-500.0,0.00016712,2]
[332672808,1721416249308,-500.0,0.00016712,2]
[332672810,1721416249319,-500.0,0.00016712,2]
[332672812,1721416249330,-500.0,0.00016712,2]
[332672814,1721416249341,-500.0,0.00016712,2]
[332672816,1721416249351,-626.69,0.00016712,2]
[332672818,1721416249362,-1995.88,0.00016712,2]
[332672820,1721416249373,-500.0,0.00016712,2]
[332672822,1721416249383,-500.0,0.00016712,2]
[332672824,1721416249394,-500.0,0.00016712,2]
[332672825,1721416249404,-963.1,0.00016712,2]
[332672826,1721416249415,-500.0,0.00016712,2]
[332672827,1721416249425,-500.0,0.00016712,2]
[332672828,1721416249435,-500.0,0.00016712,2]
[332672829,1721416249446,-548.02,0.00016712,2]
[332672830,1721416249456,-500.0,0.00016712,2]
[332672831,1721416249466,-500.0,0.00016712,2]
[332672832,1721416249479,-500.0,0.00016712,2]
[332672833,1721416249489,-500.0,0.00016712,2]
[332672834,1721416249501,-261.30972445,0.00016712,2]
[332672835,1721416249512,-500.0,0.00016712,2]
[332672836,1721416249521,-197.194395,0.00016712,2]
[332672837,1721416249532,-500.0,0.00016712,2]
[332672838,1721416249542,-500.0,0.00016712,2]
[332672839,1721416249552,-917.69,0.00016712,2]
[332672840,1721416249562,-151.0,0.00016712,2]
[332672841,1721416249572,-500.0,0.00016712,2]
[332672842,1721416249582,-500.0,0.00016712,2]
[332672843,1721416249592,-1243.87,0.00016712,2]
[332672844,1721416249602,-370.13831396,0.00016712,2]
[332672845,1721416249613,-500.0,0.00016712,2]
[332672846,1721416249623,-500.0,0.00016712,2]
[332672847,1721416249639,-500.0,0.00016712,2]
[332672848,1721416249649,-500.0,0.00016712,2]
[332672849,1721416249659,-863.0,0.00016712,2]
[332672850,1721416249670,-500.0,0.00016712,2]
[332672851,1721416249681,-500.0,0.00016712,2]
[332672852,1721416249692,-500.0,0.00016712,2]
[332672853,1721416249701,-500.0,0.00016712,2]
[332672854,1721416249712,-500.0,0.00016712,2]
[332672855,1721416249723,-505.79508747,0.00016712,2]
[332672856,1721416249733,-644.29,0.00016712,2]
[332672857,1721416249743,-532.84023395,0.00016712,2]
[332672858,1721416249753,-500.0,0.00016712,2]
[332672859,1721416249763,-500.0,0.00016712,2]
[332672860,1721416249773,-500.0,0.00016712,2]
[332672861,1721416249782,-500.0,0.00016712,2]
[332672862,1721416249792,-500.0,0.00016712,2]
[332672864,1721416249802,-500.0,0.00016712,2]
[332672866,1721416249812,-500.0,0.00016712,2]
[332672868,1721416249822,-1815.12,0.00016712,2]
[332672870,1721416249832,-500.0,0.00016712,2]
[332672872,1721416249843,-500.0,0.00016712,2]
[332672874,1721416249853,-500.0,0.00016712,2]
[332672876,1721416249864,-507.77956758,0.00016712,2]
[332672878,1721416249875,-500.0,0.00016712,2]
[332672880,1721416249885,-190.39080706,0.00016712,2]
[332672882,1721416249896,-500.0,0.00016712,2]
[332672884,1721416249906,-780.08,0.00016712,2]
[332672886,1721416249916,-1109.79,0.00016712,2]
[332672887,1721416249926,-500.0,0.00016712,2]
[332672889,1721416249936,-915.08,0.00016712,2]
[332672891,1721416249946,-500.0,0.00016712,2]
[332672893,1721416249956,-500.0,0.00016712,2]
[332672895,1721416249966,-500.0,0.00016712,2]
[332672897,1721416249979,-500.0,0.00016712,2]
[332672899,1721416249989,-500.0,0.00016712,2]
[332672901,1721416250003,-656.65,0.00016712,2]
[332672903,1721416250015,-542.29994762,0.00016712,2]
[332672906,1721416250026,-955.6,0.00016712,2]
[332672907,1721416250036,-641.46,0.00016712,2]
[332672909,1721416250047,-500.0,0.00016712,2]
[332672911,1721416250057,-500.0,0.00016712,2]
[332672913,1721416250067,-507.45038816,0.00016712,2]
[332672915,1721416250078,-1249.3,0.00016712,2]
[332672917,1721416250087,-698.19,0.00016712,2]
[332672919,1721416250098,-500.0,0.00016712,2]
[332672921,1721416250108,-151.0,0.00016712,2]
[332672923,1721416250118,-291.378229,0.00016712,2]
[332672925,1721416250129,-500.0,0.00016712,2]
[332672927,1721416250139,-500.0,0.00016712,2]
[332672929,1721416250149,-500.0,0.00016712,2]
[332672931,1721416250159,-500.0,0.00016712,2]
[332672933,1721416250170,-2205.78,0.00016712,2]
[332672935,1721416250180,-709.18,0.00016712,2]
[332672937,1721416250190,-789.05,0.00016712,2]
[332672940,1721416250200,-500.0,0.00016712,2]
[332672942,1721416250210,-500.0,0.00016712,2]
[332672944,1721416250221,-500.0,0.00016712,2]
[332672946,1721416250230,-500.0,0.00016712,2]
[332672948,1721416250241,-500.0,0.00016712,2]
[332672950,1721416250251,-521.75,0.00016712,2]
[332672952,1721416250261,-500.0,0.00016712,2]
[332672954,1721416250271,-500.0,0.00016712,2]
[332672956,1721416250280,-500.0,0.00016712,2]
[332672958,1721416250290,-500.0,0.00016712,2]
[332672960,1721416250301,-542.21,0.00016712,2]
[332672962,1721416250310,-500.0,0.00016712,2]
[332672964,1721416250320,-500.0,0.00016712,2]
[332672966,1721416250329,-500.0,0.00016712,2]
[332672968,1721416250339,-737.64,0.00016712,2]
[332672970,1721416250348,-521.63,0.00016712,2]
[332672972,1721416250359,-500.0,0.00016712,2]
[332672974,1721416250368,-859.55,0.00016712,2]
[332672976,1721416250378,-500.0,0.00016712,2]
[332672978,1721416250388,-616.33,0.00016712,2]
[332672980,1721416250398,-500.0,0.00016712,2]
[332672982,1721416250408,-1918.61,0.00016712,2]
[332672984,1721416250419,-783.63,0.00016712,2]
[332672986,1721416250429,-942.01,0.00016712,2]
[332672989,1721416250440,-290.08841606,0.00016712,2]
[332672991,1721416250449,-500.0,0.00016712,2]
[332672993,1721416250458,-500.0,0.00016712,2]
[332672995,1721416250468,-500.0,0.00016712,2]
[332672997,1721416250479,-502.6834477,0.00016712,2]
[332672999,1721416250489,-500.0,0.00016712,2]
[332673001,1721416250499,-500.0,0.00016712,2]
[332673003,1721416250508,-500.0,0.00016712,2]
[332673005,1721416250518,-719.46,0.00016712,2]
[332673007,1721416250528,-1350.86,0.00016712,2]
[332673009,1721416250537,-868.34,0.00016712,2]
[332673011,1721416250547,-500.0,0.00016712,2]
[332673013,1721416250557,-500.0,0.00016712,2]
[332673015,1721416250566,-500.0,0.00016712,2]
[332673017,1721416250577,-500.0,0.00016712,2]
[332673019,1721416250587,-956.15,0.00016712,2]
[332673021,1721416250596,-500.0,0.00016712,2]
[332673023,1721416250605,-503.45764977,0.00016712,2]
[332673025,1721416250616,-2770.62,0.00016712,2]
[332673027,1721416250626,-500.0,0.00016712,2]
[332673029,1721416250638,-500.0,0.00016712,2]
[332673031,1721416250648,-500.0,0.00016712,2]
[332673033,1721416250658,-500.0,0.00016712,2]
[332673035,1721416250669,-617.1,0.00016712,2]
[332673037,1721416250679,-500.0,0.00016712,2]
[332673039,1721416250689,-529.19,0.00016712,2]
[332673041,1721416250699,-500.0,0.00016712,2]
[332673043,1721416250710,-1963.85,0.00016712,2]
[332673045,1721416250720,-662.57,0.00016712,2]
[332673047,1721416250729,-1771.86,0.00016712,2]
[332673049,1721416250739,-500.0,0.00016712,2]
[332673051,1721416250748,-500.0,0.00016712,2]
[332673053,1721416250758,-500.0,0.00016712,2]
[332673055,1721416250767,-500.0,0.00016712,2]
[332673057,1721416250777,-571.22,0.00016712,2]
[332673058,1721416250787,-500.0,0.00016712,2]
[332673059,1721416250798,-500.0,0.00016712,2]
[332673061,1721416250809,-500.0,0.00016712,2]
[332673063,1721416250819,-511.74821432,0.00016712,2]
[332673065,1721416250829,-500.0,0.00016712,2]
[332673067,1721416250839,-500.0,0.00016712,2]
[332673069,1721416250849,-500.0,0.00016712,2]
[332673070,1721416250858,-209.13752445,0.00016712,2]
[332673072,1721416250868,-1442.71,0.00016712,2]
[332673074,1721416250878,-520.49,0.00016712,2]
[332673076,1721416250888,-500.0,0.00016712,2]
[332673078,1721416250898,-500.0,0.00016712,2]
[332673080,1721416250909,-500.0,0.00016712,2]
[332673082,1721416250918,-462.77916055,0.00016712,2]
[332673084,1721416250928,-500.0,0.00016712,2]
[332673086,1721416250938,-500.0,0.00016712,2]
[332673088,1721416250949,-151.0,0.00016712,2]
[332673090,1721416250959,-151.0,0.00016712,2]
[332673092,1721416250968,-151.0,0.00016712,2]
[332673094,1721416250978,-500.0,0.00016712,2]
[332673096,1721416250988,-1873.45,0.00016712,2]
[332673098,1721416250998,-500.0,0.00016712,2]
[332673101,1721416251010,-151.0,0.00016712,2]
[332673103,1721416251020,-151.0,0.00016712,2]
[332673105,1721416251030,-272.225542,0.00016712,2]
[332673107,1721416251039,-500.0,0.00016712,2]
[332673109,1721416251049,-601.4404759,0.00016712,2]
[332673111,1721416251059,-501.40445756,0.00016712,2]
[332673113,1721416251069,-500.0,0.00016712,2]
[332673115,1721416251079,-500.0,0.00016712,2]
[332673117,1721416251088,-1249.98,0.00016712,2]
[332673119,1721416251098,-500.0,0.00016712,2]
[332673121,1721416251108,-500.0,0.00016712,2]
[332673123,1721416251117,-814.85,0.00016712,2]
[332673125,1721416251126,-837.54,0.00016712,2]
[332673127,1721416251136,-500.0,0.00016712,2]
[332673129,1721416251146,-1068.36,0.00016712,2]
[332673131,1721416251156,-500.0,0.00016712,2]
[332673132,1721416251167,-500.0,0.00016712,2]
[332673134,1721416251177,-500.0,0.00016712,2]
[332673137,1721416251188,-175.45399858,0.00016712,2]
[332673139,1721416251198,-500.0,0.00016712,2]
[332673141,1721416251207,-500.0,0.00016712,2]
[332673143,1721416251217,-500.0,0.00016712,2]
[332673145,1721416251228,-527.83,0.00016712,2]
[332673147,1721416251238,-551.98589564,0.00016712,2]
[332673149,1721416251247,-500.0,0.00016712,2]
[332673151,1721416251257,-500.0,0.00016712,2]
[332673153,1721416251266,-500.0,0.00016712,2]
[332673155,1721416251276,-500.0,0.00016712,2]
[332673157,1721416251286,-513.24561122,0.00016712,2]
[332673159,1721416251296,-508.40747236,0.00016712,2]
[332673161,1721416251306,-500.0,0.00016712,2]
[332673163,1721416251316,-1151.62,0.00016712,2]
[332673165,1721416251326,-500.0,0.00016712,2]
[332673167,1721416251335,-2167.99,0.00016712,2]
[332673169,1721416251345,-500.0,0.00016712,2]
[332673171,1721416251354,-811.53,0.00016712,2]
[332673173,1721416251364,-500.0,0.00016712,2]
[332673175,1721416251374,-282.39921881,0.00016712,2]
[332673177,1721416251383,-500.0,0.00016712,2]
[332673179,1721416251393,-500.0,0.00016712,2]
[332673181,1721416251403,-2244.56,0.00016712,2]
[332673183,1721416251412,-500.0,0.00016712,2]
[332673185,1721416251422,-527.37,0.00016712,2]
[332673187,1721416251433,-852.16,0.00016712,2]
[332673189,1721416251442,-500.0,0.00016712,2]
[332673191,1721416251452,-630.81,0.00016712,2]
[332673193,1721416251461,-500.0,0.00016712,2]
[332673195,1721416251471,-1260.56,0.00016712,2]
[332673197,1721416251481,-500.0,0.00016712,2]
[332673199,1721416251490,-580.51,0.00016712,2]
[332673201,1721416251500,-500.0,0.00016712,2]
[332673203,1721416251510,-562.43,0.00016712,2]
[332673205,1721416251520,-4258.89,0.00016712,2]
[332673207,1721416251529,-1041.39,0.00016712,2]
[332673209,1721416251539,-966.9,0.00016712,2]
[332673211,1721416251549,-2690.68,0.00016712,2]
[332673213,1721416251558,-774.72,0.00016712,2]
[332673215,1721416251568,-500.0,0.00016712,2]
[332673217,1721416251577,-696.91,0.00016712,2]
[332673219,1721416251587,-286.77454657,0.00016712,2]
[332673221,1721416251596,-500.0,0.00016712,2]
[332673245,1721416251820,-1086.14,0.00016712,2]
[332673247,1721416251831,-1636.91,0.00016712,2]
[332673249,1721416251841,-500.0,0.00016712,2]
[332673251,1721416251850,-535.29445332,0.00016712,2]
[332673253,1721416251860,-169.45526111,0.00016712,2]
[332673255,1721416251870,-500.0,0.00016712,2]
[332673257,1721416251880,-680.7,0.00016712,2]
[332673259,1721416251891,-500.0,0.00016712,2]
[332673261,1721416251900,-2095.54,0.00016712,2]
[332673263,1721416251910,-607.67,0.00016712,2]
[332673265,1721416251920,-500.0,0.00016712,2]
[332673267,1721416251930,-500.0,0.00016712,2]
[332673269,1721416251940,-1176.53,0.00016712,2]
[332673271,1721416251949,-500.0,0.00016712,2]
[332673273,1721416251959,-545.84,0.00016712,2]
[332673274,1721416251969,-500.0,0.00016712,2]
[332673276,1721416251984,-11435.73,0.00016712,2]
[332673278,1721416251993,-500.0,0.00016712,2]
[332673280,1721416252003,-594.96,0.00016712,2]
[332673282,1721416252013,-500.0,0.00016712,2]
[332673284,1721416252022,-500.0,0.00016712,2]
[332673286,1721416252033,-888.33,0.00016712,2]
[332673288,1721416252042,-755.97,0.00016712,2]
[332673290,1721416252051,-547.24,0.00016712,2]
[332673292,1721416252061,-500.0,0.00016712,2]
[332673294,1721416252071,-500.0,0.00016712,2]
[332673296,1721416252080,-826.55,0.00016712,2]
[332673298,1721416252090,-217.563119,0.00016712,2]
[332673300,1721416252099,-217.563119,0.00016712,2]
[332673302,1721416252108,-500.0,0.00016712,2]
[332673303,1721416252118,-773.62,0.00016712,2]
[332673305,1721416252127,-788.94,0.00016712,2]
[332673307,1721416252136,-815.21,0.00016712,2]
[332673309,1721416252146,-500.0,0.00016712,2]
[332673310,1721416252155,-500.0,0.00016712,2]
[332673311,1721416252166,-500.0,0.00016712,2]
[332673312,1721416252176,-500.0,0.00016712,2]
[332673313,1721416252186,-502.13471355,0.00016712,2]
[332673314,1721416252196,-500.0,0.00016712,2]
[332673315,1721416252206,-501.47274345,0.00016712,2]
[332673316,1721416252215,-1711.35,0.00016712,2]
[332673317,1721416252228,-628.29,0.00016712,2]
[332673318,1721416252237,-500.0,0.00016712,2]
[332673319,1721416252246,-500.0,0.00016712,2]
[332673320,1721416252256,-332.295897,0.00016712,2]
[332673322,1721416252265,-332.295897,0.00016712,2]
[332673323,1721416252274,-2454.85,0.00016712,2]
[332673325,1721416252283,-332.295897,0.00016712,2]
[332673327,1721416252293,-332.295897,0.00016712,2]
[332673329,1721416252303,-3217.04,0.00016712,2]
[332673331,1721416252312,-713.54,0.00016712,2]
[332673333,1721416252322,-502.49638659,0.00016712,2]
[332673335,1721416252332,-661.92,0.00016712,2]
[332673337,1721416252341,-500.0,0.00016712,2]
[332673338,1721416252351,-419.46784292,0.00016712,2]
[332673339,1721416252360,-500.0,0.00016712,2]
[332673340,1721416252370,-500.0,0.00016712,2]
[332673341,1721416252380,-541.18,0.00016712,2]
[332673342,1721416252390,-500.0,0.00016712,2]
[332673343,1721416252399,-530.52,0.00016712,2]
[332673344,1721416252408,-500.0,0.00016712,2]
[332673345,1721416252418,-1210.77,0.00016712,2]
[332673346,1721416252427,-500.0,0.00016712,2]
[332673347,1721416252436,-500.0,0.00016712,2]
[332673348,1721416252445,-2808.57,0.00016712,2]
[332673349,1721416252455,-2554.09,0.00016712,2]
[332673350,1721416252464,-500.0,0.00016712,2]
[332673351,1721416252476,-500.0,0.00016712,2]
[332673352,1721416252485,-871.9,0.00016712,2]
[332673353,1721416252494,-1419.26,0.00016712,2]
[332673354,1721416252503,-500.0,0.00016712,2]
[332673355,1721416252513,-500.0,0.00016712,2]
[332673356,1721416252522,-1418.94,0.00016712,2]
[332673357,1721416252532,-500.0,0.00016712,2]
[332673358,1721416252542,-500.0,0.00016712,2]
[332673359,1721416252552,-1398.83,0.00016712,2]
[332673360,1721416252561,-500.0,0.00016712,2]
[332673361,1721416252570,-1224.58,0.00016712,2]
[332673362,1721416252579,-500.0,0.00016712,2]
[332673363,1721416252589,-500.0,0.00016712,2]
[332673364,1721416252598,-580.47,0.00016712,2]
[332673365,1721416252607,-500.0,0.00016712,2]
[332673366,1721416252616,-3010.4,0.00016712,2]
[332673367,1721416252629,-2443.47,0.00016712,2]
[332673368,1721416252641,-532.85699104,0.00016712,2]
[332673369,1721416252651,-500.0,0.00016712,2]
[332673370,1721416252660,-511.63911382,0.00016712,2]
[332673371,1721416252670,-500.0,0.00016712,2]
[332673372,1721416252679,-500.0,0.00016712,2]
[332673373,1721416252688,-500.0,0.00016712,2]
[332673374,1721416252699,-516.8272733,0.00016712,2]
[332673375,1721416252709,-500.0,0.00016712,2]
[332673376,1721416252720,-745.99,0.00016712,2]
[332673377,1721416252731,-500.0,0.00016712,2]
[332673378,1721416252740,-5959.3,0.00016712,2]
[332673379,1721416252749,-500.0,0.00016712,2]
[332673380,1721416252759,-500.0,0.00016712,2]
[332673381,1721416252768,-500.0,0.00016712,2]
[332673382,1721416252778,-1402.64,0.00016712,2]
[332673383,1721416252787,-573.24,0.00016712,2]
[332673384,1721416252796,-500.0,0.00016712,2]
[332673385,1721416252806,-1848.65,0.00016712,2]
[332673386,1721416252816,-500.0,0.00016712,2]
[332673387,1721416252825,-500.0,0.00016712,2]
[332673388,1721416252835,-4050.02,0.00016712,2]
[332673389,1721416252844,-205.122875,0.00016712,2]
[332673390,1721416252854,-205.122875,0.00016712,2]
[332673391,1721416252863,-500.0,0.00016712,2]